{"text_format":"3","workbook":"xlsx","n_sheets":3,"sheets":["Popis ostavine","Ostavinska imovina","Ostavinske obveze"],"not_rendered":{"defined_names":2},"read":"whole","date_system":"1900"}

{"sheet":"Popis ostavine","index":0,"n_rows":45,"n_cols":35,"rows_kept":45,"merged":[[0,1,0,30],[0,31,0,39],[1,1,5,39],[6,1,6,6],[6,7,6,39],[7,1,7,6],[7,7,7,39],[9,1,9,6],[9,7,9,39],[10,1,10,6],[10,7,10,39],[11,1,11,6],[11,7,11,20],[11,21,11,26],[11,27,11,30],[11,31,11,33],[11,34,11,39],[12,1,12,6],[12,7,12,20],[12,21,12,26],[13,1,13,6],[13,7,13,20],[13,21,13,26],[14,1,14,6],[14,7,14,20],[14,21,14,26],[15,1,15,6],[17,1,17,39],[18,1,18,6],[18,7,18,12],[18,13,18,15],[18,16,18,18],[18,19,18,26],[18,27,18,31],[18,32,18,39],[19,1,19,6],[19,7,19,12],[19,13,19,15],[19,16,19,18],[19,19,19,26],[19,27,19,31],[19,32,19,39],[20,1,20,6],[20,7,20,12],[20,13,20,15],[20,16,20,18],[20,19,20,26],[20,27,20,31],[20,32,20,39],[21,1,21,6],[21,7,21,12],[21,13,21,15],[21,16,21,18],[21,19,21,26],[21,27,21,31],[21,32,21,39],[22,1,22,6],[22,7,22,12],[22,13,22,15],[22,16,22,18],[22,19,22,26],[22,27,22,31],[22,32,22,39],[23,1,23,6],[23,7,23,12],[23,13,23,15],[23,16,23,18],[23,19,23,26],[23,27,23,31],[23,32,23,39],[25,1,25,39],[26,1,26,6],[26,7,26,12],[26,13,26,18],[26,19,26,26],[26,27,26,31],[26,32,26,39],[27,1,27,6],[27,7,27,12],[27,13,27,18],[27,19,27,26],[27,27,27,31],[27,32,27,39],[28,1,28,6],[28,7,28,12],[28,13,28,18],[28,19,28,26],[28,27,28,31],[28,32,28,39],[29,1,29,6],[29,7,29,12],[29,13,29,18],[29,19,29,26],[29,27,29,31],[29,32,29,39],[30,1,30,6],[30,7,30,12],[30,13,30,18],[30,19,30,26],[30,27,30,31],[30,32,30,39],[31,1,31,6],[31,7,31,12],[31,13,31,18],[31,19,31,26],[31,27,31,31],[31,32,31,39],[33,1,33,12],[33,14,33,39],[34,1,34,12],[34,14,34,21],[34,22,34,25],[34,26,34,33],[34,34,34,39],[35,2,35,12],[35,14,35,21],[35,22,35,25],[35,26,35,33],[35,34,35,39],[36,2,36,12],[36,14,36,21],[36,22,36,25],[36,26,36,33],[36,34,36,39],[37,2,37,12],[37,14,37,21],[37,22,37,25],[37,26,37,33],[37,34,37,39],[38,2,38,12],[38,14,38,21],[38,22,38,25],[38,26,38,33],[38,34,38,39],[39,2,39,12],[39,14,39,21],[39,22,39,25],[39,26,39,33],[39,34,39,39],[40,2,40,12],[40,14,40,21],[40,22,40,25],[40,26,40,33],[40,34,40,39],[41,2,41,12],[41,14,41,21],[41,22,41,25],[41,26,41,33],[41,34,41,39],[42,2,42,12],[42,14,42,21],[42,22,42,25],[42,26,42,33],[42,34,42,38],[43,2,43,12],[43,14,43,21],[43,22,43,25],[43,26,43,33],[43,34,43,39],[44,2,44,12],[44,14,44,21],[44,22,44,25],[44,26,44,33],[44,34,44,39]]}
[]
[null,"Popis ostavine"]
[]
[]
[]
[]
[null,"Imena izvršitelja",{"$nulls":5},"Vjekoslav Vlašić"]
[null,"Podaci za kontakt",{"$nulls":5},"Ilica 143, 10 000 Zagreb"]
[]
[null,"Ime ostavitelja",{"$nulls":5},"Tomislav Kralj"]
[null,"Ulica i broj",{"$nulls":5},"Ilica 952"]
[null,"Grad",{"$nulls":5},"Zagreb",{"$nulls":13},"Država",{"$nulls":5},"Zg",{"$nulls":3},"Poštanski broj",null,null,98052]
[null,"Broj socijalnog osiguranja",{"$nulls":5},"AAA-GG-SSSS",{"$nulls":13},"Zanimanje",{"$nulls":5},"Zubar"]
[null,"Datum rođenja",{"$nulls":5},"1965-12-08",{"$nulls":13},"Mjesto rođenja",{"$nulls":5},"Zg"]
[null,"Datum smrti",{"$nulls":5},{"$f":"TODAY()-3","v":"2022-05-16"},{"$nulls":13},"Mjesto smrti",{"$nulls":5},"Zg"]
[null,"Dodatne informacije"]
[]
[null,"  Bračni partner, djeca i drugi uzdržavani članovi"]
[null,"Ime",{"$nulls":5},"Srodstvo",{"$nulls":5},"Uzdržavani član",null,null,"Dob",null,null,"Adresa",{"$nulls":7},"Broj telefona",{"$nulls":4},"Adresa e-pošte"]
[null,"Mirela Ivanković",{"$nulls":5},"Osobni predstavnik",{"$nulls":5},"Ne",null,null,30]
[null,"Zorica Crnić",{"$nulls":5},"Bračni partner",{"$nulls":5},"Da",null,null,35]
[null,"Jadranko Lukić",{"$nulls":5},"Dijete",{"$nulls":5},"Da",null,null,12]
[]
[]
[]
[null,"Profesionalni savjetnici"]
[null,"Vrsta savjetnika",{"$nulls":5},"Osoba za kontakt",{"$nulls":5},"Tvrtka",{"$nulls":5},"Adresa",{"$nulls":7},"Broj telefona",{"$nulls":4},"Adresa e-pošte"]
[null,"Računovođa"]
[null,"Odvjetnik/bilježnik"]
[null,"Drugo"]
[]
[]
[]
[null,"  Kontrolni popis ostavine",{"$nulls":12},"  Popisi ostavine"]
[null,"    Stavke kontrolnog popisa",{"$nulls":12},"Ostavinska imovina",{"$nulls":7},"Vrijednost (kn)",{"$nulls":3},"Ostavinske obveze",{"$nulls":7},"Vrijednost (kn)"]
[null,"✔","Oporuka, testament ili bilo koji drugi dokument",{"$nulls":11},{"$f":"'Ostavinska imovina'!B12","v":"Bankovni računi"},{"$nulls":7},{"$f":"'Ostavinska imovina'!G20","v":{"v":0,"d":"0.00 kn"}},{"$nulls":3},{"$f":"'Ostavinske obveze'!B11","v":"Hipoteke"},{"$nulls":7},{"$f":"'Ostavinske obveze'!G18","v":{"v":0,"d":"0.00 kn"}}]
[null,"✔","Ugovor o najmu sefa i ključevi",{"$nulls":11},{"$f":"'Ostavinska imovina'!B22","v":"Osobna ulaganja"},{"$nulls":7},{"$f":"'Ostavinska imovina'!G30","v":{"v":0,"d":"0.00 kn"}},{"$nulls":3},{"$f":"'Ostavinske obveze'!B21","v":"Osobni zajmovi i kreditne linije"},{"$nulls":7},{"$f":"'Ostavinske obveze'!G28","v":{"v":0,"d":"0.00 kn"}}]
[null,"✖","Lozinke za računala i račune na internetu",{"$nulls":11},{"$f":"'Ostavinska imovina'!B32","v":"Poslovni udjeli"},{"$nulls":7},{"$f":"'Ostavinska imovina'!G40","v":{"v":0,"d":"0.00 kn"}},{"$nulls":3},{"$f":"'Ostavinske obveze'!B31","v":"Poslovni udjeli"},{"$nulls":7},{"$f":"'Ostavinske obveze'!G38","v":{"v":0,"d":"0.00 kn"}}]
[null,"✔","Ugovori o živim trustovima",{"$nulls":11},{"$f":"'Ostavinska imovina'!B42","v":"Nekretnine"},{"$nulls":7},{"$f":"'Ostavinska imovina'!G50","v":{"v":0,"d":"0.00 kn"}},{"$nulls":3},{"$f":"'Ostavinske obveze'!B41","v":"Kreditne kartice"},{"$nulls":7},{"$f":"'Ostavinske obveze'!G48","v":{"v":0,"d":"0.00 kn"}}]
[null,"✔","Životno osiguranje, zdravstvene police/police u slučaju nezgoda i police osiguranja",{"$nulls":11},{"$f":"'Ostavinska imovina'!B52","v":"Mirovinski planovi"},{"$nulls":7},{"$f":"'Ostavinska imovina'!G60","v":{"v":0,"d":"0.00 kn"}},{"$nulls":3},{"$f":"'Ostavinske obveze'!B51","v":"Ostale obveze"},{"$nulls":7},{"$f":"'Ostavinske obveze'!G58","v":{"v":0,"d":"0.00 kn"}}]
[null,"✔","Financijska izvješća",{"$nulls":11},{"$f":"'Ostavinska imovina'!B62","v":"Osiguranje"},{"$nulls":7},{"$f":"'Ostavinska imovina'!G70","v":{"v":0,"d":"0.00 kn"}}]
[null,"✔","Prijave poreza na dohodak za posljednje tri godine",{"$nulls":11},{"$f":"'Ostavinska imovina'!B72","v":"Privatni zajmovi i hipoteke"},{"$nulls":7},{"$f":"'Ostavinska imovina'!G80","v":{"v":0,"d":"0.00 kn"}}]
[null,"✔","Izvodi iz matične knjige rođenih i umrlih",{"$nulls":11},{"$f":"'Ostavinska imovina'!B82","v":"Udjeli u drugim posjedima i trustovima"},{"$nulls":7},{"$f":"'Ostavinska imovina'!G90","v":{"v":0,"d":"0.00 kn"}}]
[null,"✖","Ugovori, hipoteke i izvješća o zajmu",{"$nulls":11},{"$f":"'Ostavinska imovina'!B92","v":"Osobni predmeti i druga imovina"},{"$nulls":7},{"$f":"'Ostavinska imovina'!G100","v":{"v":0,"d":"0.00 kn"}}]
[null,"☐","Neplaćeni računi i bilješke",{"$nulls":11},"Ukupna imovina",{"$nulls":7},{"$f":"'Ostavinska imovina'!G10","v":{"v":0,"d":"0.00 kn"}},{"$nulls":3},"Ukupne obveze",{"$nulls":7},{"$f":"SUM(AI36:AN44)","v":{"v":0,"d":"0.00 kn"}}]

{"sheet":"Ostavinska imovina","index":1,"n_rows":100,"n_cols":8,"rows_kept":100,"merged":[[0,1,0,7],[1,1,5,7],[6,1,7,7],[11,1,11,7],[12,1,12,7],[21,1,21,7],[22,1,22,7],[31,1,31,7],[32,1,32,7],[41,1,41,7],[42,1,42,7],[51,1,51,7],[52,1,52,7],[61,1,61,7],[62,1,62,7],[71,1,71,7],[72,1,72,7],[81,1,81,7],[82,1,82,7],[91,1,91,7],[92,1,92,7]]}
[]
[null,"Ostavinska imovina"]
[]
[]
[]
[]
[null,"Pomoću ovog radnog lista stvorite popis ostavinske imovine. Morat ćete odrediti tržišnu vrijednost svake nekretnine u sklopu imovine na datum smrti. Pregledajte sve zapise, uključujući financijska izvješća, police osiguranja i porezne prijave kako biste dobili tržišne vrijednosti. Možda ćete morati dobiti i procjenu osobnih predmeta (tj. umjetničkih djela, zbirki, antikviteta itd.). Obavezno u popis uključite i inozemnu imovinu, kao što su nekretnine, vrijednosnice ili inozemni poslovni udjeli. Možda ćete trebati stručnu pomoć za dobivanje točne tržišne vrijednosti za stranu imovinu."]
[]
[]
[null,"Ukupna imovina",{"$nulls":4},{"$f":"tblBankovniRačuni[[#Totals],[Saldo ]]+tblOsobnaUlaganja[[#Totals],[Tržišna vrijednost]]+tblPoslovniUdjeli[[#Totals],[Vrijednost ]]+tblNekretnina[[#Totals],[Tržišna cijena]]+tblMirovinskiPlanovi[[#Totals],[Vrijednost ]]+tblOsiguranje[[#Totals],[Novčana vrijednost ]]+tblHipoteke[[#Totals],[Saldo duga ]]+tblFondovi[[#Totals],[Iznos raspodjele]]+tblDrugaImovina[[#Totals],[Vrijednost ]]","v":{"v":0,"d":"0.00 kn"}}]
[]
[null,"Bankovni računi"]
[null,"Popis svih bankovnih računa, uključujući gotovinu, putničke čekove, novčane naloge i račune u poslovnim bankama, štedionicama, kreditnim unijama itd. Uvrstite sva imena navedena na računu i stvarnu novčanu vrijednost koja se odnosi na točnu vrijednost dolara i iznos promjene u trenutku smrti."]
[null,"Financijska ustanova ","Adresa","Telefon","Broj računa","Vrsta računa","Saldo ","Napomene"]
[]
[]
[]
[]
[]
[null,"Ukupno",{"$nulls":4},{"$f":"SUBTOTAL(109,tblBankovniRačuni[[Saldo ]])","v":{"v":0,"d":"0.00 kn"}}]
[]
[null,"Osobna ulaganja"]
[null,"Navedite novčane račune, maržne račune, račune za štednju bez poreza, registrirane planove mirovinske štednje (RRSP-ovi), registrirana sredstva mirovinskog prihoda ( RRIF-ovi), zaključane RRIF-ove, zaključane RRSP-ove, sredstva životnog prihoda, propisana sredstva mirovinskog prihoda, registrirane planove štednje za obrazovanje, anuitete itd."]
[null,"Tvrtka","Adresa","Telefonski broj","Broj računa","Korisnik","Tržišna vrijednost","Napomene"]
[]
[]
[]
[]
[]
[null,"Ukupno",{"$nulls":4},{"$f":"SUBTOTAL(109,tblOsobnaUlaganja[Tržišna vrijednost])","v":{"v":0,"d":"0.00 kn"}}]
[]
[null,"Poslovni udjeli"]
[null,"Navedite sve poslovne udjele uključujući poduzeća u vlasništvu jedne osobe, profesionalne prakse, korporacije, partnerstva, društva i partnerstva s ograničenom odgovornošću, zajedničke pothvate i druge poslovne subjekte kojima se ne trguje javno. "]
[null,"Naziv tvrtke","Adresa","Telefonski broj","Kontakt","Vrsta","Vrijednost ","Napomene"]
[]
[]
[]
[]
[]
[null,"Ukupno",{"$nulls":4},{"$f":"SUBTOTAL(109,tblPoslovniUdjeli[[Vrijednost ]])","v":{"v":0,"d":"0.00 kn"}}]
[]
[null,"Nekretnine"]
[null,"Navedite bilo koju nekretninu na kojoj je ostavitelj i/ili preživjeli bračni partner/partner vlasnik, suvlasnik ili ima udio na bilo koji način, uključujući imovinu kupljenu u objektima za rekreaciju i vlasništva s vremenski ograničenom uporabom. Nabavite kopije ugovora. Navedite opis nekretnine s njezinom fizičkom adresom. Navedite prosječnu tržišnu vrijednost nekretnine na temelju najnovije procjene poreznog procjenitelja."]
[null,"Adresa","Naslov koji nosi","Telefon","Kontakt","Kupovna cijena","Tržišna cijena","Napomene"]
[]
[]
[]
[]
[]
[null,"Ukupno",{"$nulls":3},{"$f":"SUBTOTAL(109,tblNekretnina[Kupovna cijena])","v":{"v":0,"d":"0.00 kn"}},{"$f":"SUBTOTAL(109,tblNekretnina[Tržišna cijena])","v":{"v":0,"d":"0.00 kn"}}]
[]
[null,"Mirovinski planovi"]
[null,"Navedite definirane naknade, kupnju novca ili definirane doprinose, DPSP ili grupni RRSP itd."]
[null,"Tvrtka","Telefon","Vrsta plana","Korisnik","Adresa e-pošte","Vrijednost ","Napomene"]
[]
[]
[]
[]
[]
[null,"Ukupno",{"$nulls":4},{"$f":"SUBTOTAL(109,tblMirovinskiPlanovi[[Vrijednost ]])","v":{"v":0,"d":"0.00 kn"}}]
[]
[null,"Osiguranje"]
[null,"Uključujte žive trustove, police životnog osiguranja s imenovanim korisnicima i investicijske račune koji su preneseni prilikom smrti, kao neostavinsku imovinu. Ako se sud raspita o toj imovini, izvršitelj se može jednostavno pozvati na popis neostavinske imovine i objasniti njezin izostanak s popisa ostavine."]
[null,"Izdavatelj","Broj police","Telefon","Korisnik","Nominalna vrijednost ","Novčana vrijednost ","Napomene"]
[]
[]
[]
[]
[]
[null,"Ukupno",{"$nulls":3},{"$f":"SUBTOTAL(109,tblOsiguranje[[Nominalna vrijednost ]])","v":{"v":0,"d":"0.00 kn"}},{"$f":"SUBTOTAL(109,tblOsiguranje[[Novčana vrijednost ]])","v":{"v":0,"d":"0.00 kn"}}]
[]
[null,"Privatni zajmovi i hipoteke"]
[null,"Navedite privatne zajmove i hipoteke kod kojih je preminula osoba bila zajmodavac."]
[null,"Ime zajmoprimca","Adresa","Telefonski broj","Vrsta","Izvorni iznos","Saldo duga ","Napomene"]
[]
[]
[]
[]
[]
[null,"Ukupno",{"$nulls":3},{"$f":"SUBTOTAL(109,tblHipoteke[Izvorni iznos])","v":{"v":0,"d":"0.00 kn"}},{"$f":"SUBTOTAL(109,tblHipoteke[[Saldo duga ]])","v":{"v":0,"d":"0.00 kn"}}]
[]
[null,"Udjeli u drugim posjedima i trustovima"]
[null,"Navedite imovinu registriranu na ime preminule osobe u ime drugih (npr. imovina koju je preminula osoba čuvala kao povjerenik ili imovina koja se čuvala na temelju punomoći)."]
[null,"Naziv posjeda/trusta","Ime izvršitelja/povjerenika","Telefonski broj","Adresa","Adresa e-pošte","Iznos raspodjele","Napomene"]
[]
[]
[]
[]
[]
[null,"Ukupno",{"$nulls":4},{"$f":"SUBTOTAL(109,tblFondovi[Iznos raspodjele])","v":{"v":0,"d":"0.00 kn"}}]
[]
[null,"Osobni predmeti i druga imovina"]
[null,"Navedite sve osobne predmete, na primjer; automobili, nakit, umjetnička djela, antikviteti, namještaj. Uvrstite stavke koje su možda čuvane u sefu ili na sigurnom."]
[null,"Opis stavke","Mjesto","Telefon","Kontakt","Korisnik","Vrijednost ","Napomene"]
[]
[]
[]
[]
[]
[null,"Ukupno",{"$nulls":4},{"$f":"SUBTOTAL(109,tblDrugaImovina[[Vrijednost ]])","v":{"v":0,"d":"0.00 kn"}}]

{"sheet":"Ostavinske obveze","index":2,"n_rows":58,"n_cols":8,"rows_kept":58,"merged":[[0,1,0,7],[1,1,5,7],[6,1,6,7],[10,1,10,7],[20,1,20,7],[30,1,30,7],[40,1,40,7],[50,1,50,7]]}
[]
[null,"Ostavinske obveze"]
[]
[]
[]
[]
[null,"Pomoću ovog radnog lista zabilježite pojedinosti o obavezama posjeda, domaćim i stranim. Bit će vam potrebna procjena svake obveze na dan smrti."]
[]
[null,"Ukupna imovina",{"$nulls":4},{"$f":"SUM(G18,G28,G38,G48,G58)","v":{"v":0,"d":"0.00 kn"}}]
[]
[null,"Hipoteke"]
[null,"Financijska ustanova ","Adresa","Telefon","Naslov koji nosi","Broj računa","Saldo ","Napomene"]
[]
[]
[]
[]
[]
[null,"Ukupno",{"$nulls":4},{"$f":"SUBTOTAL(109,tblBankovniRačuni2[[Saldo ]])","v":{"v":0,"d":"0.00 kn"}}]
[]
[]
[null,"Osobni zajmovi i kreditne linije"]
[null,"Financijska ustanova","Adresa","Telefonski broj"," Broj računa","Vrsta","Saldo ","Napomene"]
[]
[]
[]
[]
[]
[null,"Ukupno",{"$nulls":4},{"$f":"SUBTOTAL(109,tblPoslovnaUlaganja3[[Saldo ]])","v":{"v":0,"d":"0.00 kn"}}]
[]
[]
[null,"Poslovni udjeli"]
[null,"Naziv tvrtke","Adresa"," Telefonski broj"," Kontakt","Vrsta","Vrijednost ","Napomene"]
[]
[]
[]
[]
[]
[null,"Ukupno",{"$nulls":4},{"$f":"SUBTOTAL(109,tblPoslovniUdjeli4[[Vrijednost ]])","v":{"v":0,"d":"0.00 kn"}}]
[]
[]
[null,"Kreditne kartice"]
[null,"Tvrtka kreditne kartice","Adresa tvrtke","Telefonski broj","Broj kartice","Datum isteka ","Saldo ","Napomene"]
[]
[]
[]
[]
[]
[null,"Ukupno",{"$nulls":4},{"$f":"SUBTOTAL(109,tblNekretnine5[[Saldo ]])","v":{"v":0,"d":"0.00 kn"}}]
[]
[]
[null,"Ostale obveze"]
[null,"Opis stavke","Mjesto","Telefon","Kontakt","Korisnik","Vrijednost ","Napomene"]
[]
[]
[]
[]
[]
[null,"Ukupno",{"$nulls":4},{"$f":"SUBTOTAL(109,tblMirovinskiPlanovi6[[Vrijednost ]])","v":{"v":0,"d":"0.00 kn"}}]